[Event "Early-Titled-Tuesday-Blitz-January-16-2024"]
[Site "Chess.com"]
[Date "2024.01.16"]
[Round "5"]
[White "KononenkoD"]
[Black "finec2"]
[Result "1-0"]
[WhiteElo "2538"]
[BlackElo "2321"]
[TimeControl "180+1"]
[EndTime "8:57:52 PST"]
[Termination "KononenkoD won on time"]

1. e4 {[%clk 0:02:52.8]} 1... c5 {[%clk 0:02:58.8]} 2. Nf3 {[%clk 0:02:53]} 2...
e6 {[%clk 0:02:58.5]} 3. d4 {[%clk 0:02:53.4]} 3... cxd4 {[%clk 0:02:59.3]} 4.
Nxd4 {[%clk 0:02:54.1]} 4... Nc6 {[%clk 0:02:59.4]} 5. Nc3 {[%clk 0:02:53.7]}
5... Qc7 {[%clk 0:02:58.3]} 6. Bc4 {[%clk 0:02:53.2]} 6... a6 {[%clk 0:02:56.3]}
7. Bb3 {[%clk 0:02:53.4]} 7... b5 {[%clk 0:02:55.4]} 8. O-O {[%clk 0:02:53.4]}
8... Bb7 {[%clk 0:02:55.3]} 9. a3 {[%clk 0:02:52.5]} 9... Nf6 {[%clk 0:02:52]}
10. Be3 {[%clk 0:02:48.8]} 10... Be7 {[%clk 0:02:47.7]} 11. Kh1 {[%clk
0:02:46.8]} 11... Na5 {[%clk 0:02:35.7]} 12. f4 {[%clk 0:02:34.7]} 12... Nxb3
{[%clk 0:02:32]} 13. Nxb3 {[%clk 0:02:34.4]} 13... Nxe4 {[%clk 0:02:30.9]} 14.
Nxe4 {[%clk 0:02:34.4]} 14... Bxe4 {[%clk 0:02:31.1]} 15. Qd4 {[%clk 0:02:34.5]}
15... Qb7 {[%clk 0:02:17.8]} 16. Rf2 {[%clk 0:02:33.8]} 16... O-O {[%clk
0:02:11]} 17. Rd1 {[%clk 0:02:29]} 17... d5 {[%clk 0:02:05.7]} 18. c3 {[%clk
0:02:26.3]} 18... Rfc8 {[%clk 0:01:44.5]} 19. Qd2 {[%clk 0:02:18.5]} 19... a5
{[%clk 0:01:38.3]} 20. f5 {[%clk 0:02:07.9]} 20... Bxf5 {[%clk 0:01:24.7]} 21.
Nd4 {[%clk 0:02:07.5]} 21... Bg6 {[%clk 0:01:19.6]} 22. Nf3 {[%clk 0:02:04.8]}
22... b4 {[%clk 0:01:13.6]} 23. axb4 {[%clk 0:02:04.6]} 23... axb4 {[%clk
0:01:13.4]} 24. Bd4 {[%clk 0:02:01.5]} 24... Bc5 {[%clk 0:00:52.9]} 25. Ne5
{[%clk 0:01:57.8]} 25... Bxd4 {[%clk 0:00:51.5]} 26. Qxd4 {[%clk 0:01:48.6]}
26... bxc3 {[%clk 0:00:50.6]} 27. bxc3 {[%clk 0:01:48.3]} 27... Qa7 {[%clk
0:00:41.4]} 28. Qd2 {[%clk 0:01:32.9]} 28... Rc7 {[%clk 0:00:31.1]} 29. Rf3
{[%clk 0:01:29.7]} 29... Rac8 {[%clk 0:00:31]} 30. Rdf1 {[%clk 0:01:22]} 30...
Qa5 {[%clk 0:00:26.4]} 31. h3 {[%clk 0:01:14.4]} 31... Rxc3 {[%clk 0:00:17.9]}
32. Nxg6 {[%clk 0:01:14.4]} 32... Rxf3 {[%clk 0:00:11.4]} 33. Ne7+ {[%clk
0:01:07.2]} 33... Kf8 {[%clk 0:00:11.1]} 34. Qxa5 {[%clk 0:01:07.2]} 34... Rxf1+
{[%clk 0:00:10.1]} 35. Kh2 {[%clk 0:01:07.1]} 35... Kxe7 {[%clk 0:00:08.9]} 36.
Qb4+ {[%clk 0:01:06.9]} 36... Kf6 {[%clk 0:00:08.1]} 37. Qb2+ {[%clk 0:01:04.3]}
37... e5 {[%clk 0:00:04]} 38. Qb7 {[%clk 0:01:00.4]} 38... Rb8 {[%clk
0:00:02.3]} 39. Qxb8 {[%clk 0:00:59.6]} 1-0

[Event "Early-Titled-Tuesday-Blitz-January-16-2024"]
[Site "Chess.com"]
[Date "2024.01.16"]
[Round "5"]
[White "Russian_berezka"]
[Black "Andrey_Klymchuk"]
[Result "0-1"]
[WhiteElo "2554"]
[BlackElo "2806"]
[TimeControl "180+1"]
[EndTime "8:57:55 PST"]
[Termination "Andrey_Klymchuk won on time"]

1. d4 {[%clk 0:03:00.9]} 1... Nf6 {[%clk 0:02:59.6]} 2. Bf4 {[%clk 0:03:01.2]}
2... e6 {[%clk 0:02:58.2]} 3. e3 {[%clk 0:03:01.4]} 3... b6 {[%clk 0:02:57.9]}
4. Nd2 {[%clk 0:03:01.2]} 4... Bb7 {[%clk 0:02:57.5]} 5. Ngf3 {[%clk 0:03:01.9]}
5... Nh5 {[%clk 0:02:57.2]} 6. Bg3 {[%clk 0:02:55.3]} 6... d6 {[%clk 0:02:54.1]}
7. Bd3 {[%clk 0:02:54.7]} 7... Nd7 {[%clk 0:02:53.3]} 8. e4 {[%clk 0:02:09.4]}
8... a6 {[%clk 0:02:41.9]} 9. Qe2 {[%clk 0:01:56.2]} 9... c5 {[%clk 0:02:31.7]}
10. c3 {[%clk 0:01:52.1]} 10... Be7 {[%clk 0:02:25]} 11. O-O {[%clk 0:01:43.6]}
11... O-O {[%clk 0:02:20.8]} 12. a4 {[%clk 0:01:43.6]} 12... Re8 {[%clk
0:02:13.7]} 13. Nc4 {[%clk 0:01:35.1]} 13... Qc7 {[%clk 0:02:04.3]} 14. b4
{[%clk 0:01:05.1]} 14... Nxg3 {[%clk 0:01:56.3]} 15. hxg3 {[%clk 0:01:04.5]}
15... b5 {[%clk 0:01:54.8]} 16. Na5 {[%clk 0:01:03.4]} 16... c4 {[%clk
0:01:52.9]} 17. Bc2 {[%clk 0:00:58.5]} 17... e5 {[%clk 0:01:52.7]} 18. d5 {[%clk
0:00:46.4]} 18... h5 {[%clk 0:01:45.2]} 19. Nh4 {[%clk 0:00:45]} 19... g6 {[%clk
0:01:44.4]} 20. axb5 {[%clk 0:00:39.7]} 20... axb5 {[%clk 0:01:44.1]} 21. Nxb7
{[%clk 0:00:40.5]} 21... Qxb7 {[%clk 0:01:44.2]} 22. Qd2 {[%clk 0:00:41.2]}
22... Rxa1 {[%clk 0:01:35.6]} 23. Rxa1 {[%clk 0:00:40.9]} 23... Ra8 {[%clk
0:01:36.2]} 24. Qc1 {[%clk 0:00:41.3]} 24... Ra7 {[%clk 0:01:33.4]} 25. Qb2
{[%clk 0:00:39.1]} 25... Qa8 {[%clk 0:01:31.3]} 26. Rxa7 {[%clk 0:00:38.9]}
26... Qxa7 {[%clk 0:01:32.2]} 27. Nf3 {[%clk 0:00:39.6]} 27... Nf6 {[%clk
0:01:30.8]} 28. Bb1 {[%clk 0:00:39.6]} 28... Bf8 {[%clk 0:01:28.7]} 29. Kf1
{[%clk 0:00:32.7]} 29... Bh6 {[%clk 0:01:27.5]} 30. Ne1 {[%clk 0:00:30]} 30...
Ng4 {[%clk 0:01:26.7]} 31. Qa2 {[%clk 0:00:20.8]} 31... Qb6 {[%clk 0:01:19.6]}
32. Qe2 {[%clk 0:00:20]} 32... Qa7 {[%clk 0:01:16.1]} 33. Qa2 {[%clk 0:00:19.8]}
33... Qxa2 {[%clk 0:01:16]} 34. Bxa2 {[%clk 0:00:20.7]} 34... Bd2 {[%clk
0:01:16.4]} 35. Nc2 {[%clk 0:00:21.3]} 35... Bxc3 {[%clk 0:01:16.7]} 36. Na3
{[%clk 0:00:22]} 36... Bxb4 {[%clk 0:01:16]} 37. Nxb5 {[%clk 0:00:22.4]} 37...
c3 {[%clk 0:01:16.1]} 38. Bb3 {[%clk 0:00:20.4]} 38... Bc5 {[%clk 0:01:15.6]}
39. f3 {[%clk 0:00:18.7]} 39... c2 {[%clk 0:01:14.8]} 40. Bxc2 {[%clk
0:00:08.1]} 40... Ne3+ {[%clk 0:01:15.7]} 41. Ke2 {[%clk 0:00:08.8]} 41... Nxc2
{[%clk 0:01:16]} 42. Kd3 {[%clk 0:00:08.5]} 42... Ne1+ {[%clk 0:01:14.7]} 43.
Kc4 {[%clk 0:00:08.1]} 43... Nxg2 {[%clk 0:01:14.1]} 0-1

[Event "Early-Titled-Tuesday-Blitz-January-16-2024"]
[Site "Chess.com"]
[Date "2024.01.16"]
[Round "5"]
[White "gabduschew"]
[Black "RodokininEV"]
[Result "0-1"]
[WhiteElo "2443"]
[BlackElo "2618"]
[TimeControl "180+1"]
[EndTime "8:57:55 PST"]
[Termination "RodokininEV won on time"]

1. b3 {[%clk 0:02:59.4]} 1... d5 {[%clk 0:02:54.4]} 2. Bb2 {[%clk 0:02:58.8]}
2... a5 {[%clk 0:02:51.1]} 3. a4 {[%clk 0:02:56.6]} 3... Nc6 {[%clk 0:02:48.9]}
4. e3 {[%clk 0:02:55.2]} 4... e5 {[%clk 0:02:47.2]} 5. Bb5 {[%clk 0:02:53.9]}
5... Bd6 {[%clk 0:02:46.9]} 6. f4 {[%clk 0:02:51.5]} 6... f6 {[%clk 0:02:40.9]}
7. Nh3 {[%clk 0:02:48.7]} 7... Ne7 {[%clk 0:02:36]} 8. fxe5 {[%clk 0:02:47.7]}
8... fxe5 {[%clk 0:02:34.8]} 9. O-O {[%clk 0:02:46.9]} 9... Nf5 {[%clk
0:02:29.4]} 10. Nc3 {[%clk 0:02:32]} 10... O-O {[%clk 0:02:16.6]} 11. Nxd5
{[%clk 0:02:28]} 11... Be6 {[%clk 0:02:13.3]} 12. Nc3 {[%clk 0:02:07.4]} 12...
Qh4 {[%clk 0:02:09.3]} 13. Nf2 {[%clk 0:01:57.9]} 13... e4 {[%clk 0:01:57.7]}
14. h3 {[%clk 0:01:48.4]} 14... Qg3 {[%clk 0:01:54.5]} 15. Ng4 {[%clk
0:01:38.5]} 15... Nxe3 {[%clk 0:01:40.9]} 16. dxe3 {[%clk 0:01:20.3]} 16... Bxg4
{[%clk 0:01:34.4]} 17. Qd5+ {[%clk 0:01:15.6]} 17... Kh8 {[%clk 0:01:29.6]} 18.
Rf7 {[%clk 0:01:08.2]} 18... Qh2+ {[%clk 0:01:26.3]} 19. Kf2 {[%clk 0:01:06.6]}
19... Rxf7+ {[%clk 0:01:26.6]} 20. Qxf7 {[%clk 0:01:06]} 20... Rf8 {[%clk
0:01:23.7]} 21. Qxf8+ {[%clk 0:01:06]} 21... Bxf8 {[%clk 0:01:23.6]} 22. hxg4
{[%clk 0:01:05.9]} 22... Ne5 {[%clk 0:01:19.1]} 23. Be2 {[%clk 0:01:02.5]} 23...
Bc5 {[%clk 0:01:05.4]} 24. Nd5 {[%clk 0:00:59.5]} 24... Nxg4+ {[%clk 0:00:59.4]}
25. Bxg4 {[%clk 0:00:56.3]} 25... Qh4+ {[%clk 0:00:58.9]} 26. Kg1 {[%clk
0:00:50.2]} 26... Qxg4 {[%clk 0:00:56.9]} 27. Re1 {[%clk 0:00:18.2]} 27... Qc8
{[%clk 0:00:54.1]} 28. Nf4 {[%clk 0:00:11.2]} 28... Qg4 {[%clk 0:00:50.1]} 29.
Nh3 {[%clk 0:00:04.2]} 29... h6 {[%clk 0:00:46.5]} 30. Bc1 {[%clk 0:00:01.9]}
30... Bd6 {[%clk 0:00:40.2]} 0-1

[Event "Early-Titled-Tuesday-Blitz-January-16-2024"]
[Site "Chess.com"]
[Date "2024.01.16"]
[Round "5"]
[White "toninhojit"]
[Black "ChessBliss09"]
[Result "1-0"]
[WhiteElo "2398"]
[BlackElo "2083"]
[TimeControl "180+1"]
[EndTime "8:57:55 PST"]
[Termination "toninhojit won by checkmate"]

1. e4 {[%clk 0:03:00.9]} 1... e5 {[%clk 0:02:59.1]} 2. Nf3 {[%clk 0:03:00.9]}
2... Nc6 {[%clk 0:02:58.1]} 3. Bb5 {[%clk 0:03:01.5]} 3... Nf6 {[%clk
0:02:56.6]} 4. O-O {[%clk 0:02:56]} 4... Nxe4 {[%clk 0:02:56.1]} 5. Re1 {[%clk
0:02:51.8]} 5... Nd6 {[%clk 0:02:54.3]} 6. Nxe5 {[%clk 0:02:50.2]} 6... Be7
{[%clk 0:02:49.2]} 7. Bf1 {[%clk 0:02:45.3]} 7... Nxe5 {[%clk 0:02:45.6]} 8.
Rxe5 {[%clk 0:02:45.1]} 8... O-O {[%clk 0:02:46.2]} 9. d4 {[%clk 0:02:45.1]}
9... Bf6 {[%clk 0:02:45.6]} 10. Bd3 {[%clk 0:02:43.6]} 10... Bxe5 {[%clk
0:02:37.4]} 11. dxe5 {[%clk 0:02:44.5]} 11... Ne8 {[%clk 0:02:33.6]} 12. Qh5
{[%clk 0:02:41.5]} 12... g6 {[%clk 0:02:32.4]} 13. Qh6 {[%clk 0:02:37.3]} 13...
Qe7 {[%clk 0:02:08]} 14. Bf4 {[%clk 0:02:34.8]} 14... Ng7 {[%clk 0:02:01]} 15.
Nc3 {[%clk 0:02:33.4]} 15... c6 {[%clk 0:01:56.6]} 16. Ne4 {[%clk 0:02:29.4]}
16... Ne8 {[%clk 0:01:40]} 17. Ng5 {[%clk 0:01:24.4]} 17... f5 {[%clk
0:01:39.7]} 18. Bc4+ {[%clk 0:00:56.4]} 18... Kh8 {[%clk 0:01:24.1]} 19. Nxh7
{[%clk 0:00:54.5]} 19... Qg7 {[%clk 0:00:46.7]} 20. Nxf8+ {[%clk 0:00:52.7]}
20... Qxh6 {[%clk 0:00:44.6]} 21. Bxh6 {[%clk 0:00:53.6]} 21... b5 {[%clk
0:00:41.2]} 22. Bf7 {[%clk 0:00:49.4]} 22... Ng7 {[%clk 0:00:34.1]} 23. Nxg6+
{[%clk 0:00:45.7]} 23... Kh7 {[%clk 0:00:33.7]} 24. Bg5 {[%clk 0:00:43.6]} 24...
Bb7 {[%clk 0:00:27.3]} 25. Re1 {[%clk 0:00:43.4]} 25... Rc8 {[%clk 0:00:15.8]}
26. Re3 {[%clk 0:00:42.4]} 26... f4 {[%clk 0:00:13.6]} 27. Rh3+ {[%clk
0:00:40.2]} 27... Nh5 {[%clk 0:00:12.9]} 28. Bf6 {[%clk 0:00:29.5]} 28... Kh6
{[%clk 0:00:11.2]} 29. Nxf4 {[%clk 0:00:30.2]} 29... Rf8 {[%clk 0:00:04]} 30.
Rxh5# {[%clk 0:00:30.1]} 1-0

[Event "Early-Titled-Tuesday-Blitz-January-16-2024"]
[Site "Chess.com"]
[Date "2024.01.16"]
[Round "5"]
[White "JSPrepz"]
[Black "sergoy"]
[Result "1/2-1/2"]
[WhiteElo "2876"]
[BlackElo "3011"]
[TimeControl "180+1"]
[EndTime "8:58:00 PST"]
[Termination "Game drawn by repetition"]

1. e4 {[%clk 0:03:00.9]} 1... c5 {[%clk 0:02:56.6]} 2. Nf3 {[%clk 0:03:01.1]}
2... d6 {[%clk 0:02:57]} 3. Nc3 {[%clk 0:03:01.5]} 3... a6 {[%clk 0:02:56.4]} 4.
g3 {[%clk 0:03:01.5]} 4... Nf6 {[%clk 0:02:54.7]} 5. e5 {[%clk 0:03:01.7]} 5...
dxe5 {[%clk 0:02:54.2]} 6. Nxe5 {[%clk 0:03:02.6]} 6... Qd6 {[%clk 0:02:54.1]}
7. Nc4 {[%clk 0:02:59.8]} 7... Qc6 {[%clk 0:02:54.4]} 8. Rg1 {[%clk 0:02:58.8]}
8... Nbd7 {[%clk 0:02:42.1]} 9. Bg2 {[%clk 0:02:56.6]} 9... Qc7 {[%clk
0:02:42.2]} 10. d3 {[%clk 0:02:54.5]} 10... e5 {[%clk 0:02:42.2]} 11. g4 {[%clk
0:02:53.1]} 11... h6 {[%clk 0:02:19.4]} 12. Qe2 {[%clk 0:02:47.6]} 12... Rb8
{[%clk 0:02:11.8]} 13. f4 {[%clk 0:02:40.2]} 13... e4 {[%clk 0:01:35.1]} 14.
dxe4 {[%clk 0:02:22.6]} 14... Nb6 {[%clk 0:01:31.8]} 15. Nd5 {[%clk 0:02:09.6]}
15... Nfxd5 {[%clk 0:01:20.2]} 16. exd5+ {[%clk 0:02:09.5]} 16... Kd8 {[%clk
0:01:20.5]} 17. d6 {[%clk 0:01:43.1]} 17... Bxd6 {[%clk 0:01:20.3]} 18. Nxd6
{[%clk 0:01:43.5]} 18... Qxd6 {[%clk 0:01:20.9]} 19. Be3 {[%clk 0:01:44.2]}
19... Bd7 {[%clk 0:01:21.5]} 20. Rd1 {[%clk 0:01:36.6]} 20... Qe7 {[%clk
0:01:21.2]} 21. Bf3 {[%clk 0:00:57.1]} 21... Kc8 {[%clk 0:01:08.6]} 22. Kf2
{[%clk 0:00:56.2]} 22... Re8 {[%clk 0:01:08.3]} 23. Rge1 {[%clk 0:00:51.4]}
23... Bb5 {[%clk 0:01:06.4]} 24. Qd2 {[%clk 0:00:24.5]} 24... Nc4 {[%clk
0:01:06.6]} 25. Qc3 {[%clk 0:00:21.8]} 25... Nxe3 {[%clk 0:01:02.6]} 26. Rxe3
{[%clk 0:00:22]} 26... Qxe3+ {[%clk 0:01:03]} 27. Qxe3 {[%clk 0:00:22.6]} 27...
Rxe3 {[%clk 0:01:03.8]} 28. Kxe3 {[%clk 0:00:23.5]} 28... Kc7 {[%clk 0:01:04]}
29. Rd5 {[%clk 0:00:13.5]} 29... b6 {[%clk 0:01:02.1]} 30. Re5 {[%clk
0:00:13.7]} 30... Kd6 {[%clk 0:00:53.1]} 31. Rd5+ {[%clk 0:00:13.7]} 31... Kc7
{[%clk 0:00:53.5]} 32. Re5 {[%clk 0:00:14.3]} 32... Rd8 {[%clk 0:00:46.7]} 33.
b3 {[%clk 0:00:12]} 33... f6 {[%clk 0:00:45.1]} 34. Re7+ {[%clk 0:00:11.9]}
34... Rd7 {[%clk 0:00:45.6]} 35. Re6 {[%clk 0:00:12.3]} 35... Rd6 {[%clk
0:00:36.5]} 36. Re7+ {[%clk 0:00:12.8]} 36... Rd7 {[%clk 0:00:37]} 37. Re6
{[%clk 0:00:13.4]} 37... Rd6 {[%clk 0:00:33.5]} 38. Re7+ {[%clk 0:00:13.8]}
38... Rd7 {[%clk 0:00:34.1]} 1/2-1/2

[Event "Early-Titled-Tuesday-Blitz-January-16-2024"]
[Site "Chess.com"]
[Date "2024.01.16"]
[Round "5"]
[White "iwanyu"]
[Black "Grandelicious"]
[Result "1-0"]
[WhiteElo "2685"]
[BlackElo "2918"]
[TimeControl "180+1"]
[EndTime "8:58:01 PST"]
[Termination "iwanyu won by resignation"]

1. d4 {[%clk 0:03:00.9]} 1... d6 {[%clk 0:02:59.3]} 2. Nf3 {[%clk 0:03:00.6]}
2... Nf6 {[%clk 0:02:58.7]} 3. g3 {[%clk 0:03:00.5]} 3... g6 {[%clk 0:02:57.2]}
4. Bg2 {[%clk 0:03:00.8]} 4... Bg7 {[%clk 0:02:57.9]} 5. c4 {[%clk 0:03:01.3]}
5... Bf5 {[%clk 0:02:54.5]} 6. Nc3 {[%clk 0:02:59.4]} 6... Ne4 {[%clk
0:02:54.4]} 7. Na4 {[%clk 0:02:59.5]} 7... c6 {[%clk 0:02:38.5]} 8. O-O {[%clk
0:02:56.3]} 8... Nf6 {[%clk 0:02:26.2]} 9. Nc3 {[%clk 0:02:50.8]} 9... Qc8
{[%clk 0:02:25.1]} 10. Re1 {[%clk 0:02:46.1]} 10... Ne4 {[%clk 0:02:21.2]} 11.
Nh4 {[%clk 0:02:07.6]} 11... Nxc3 {[%clk 0:02:19.3]} 12. bxc3 {[%clk 0:02:08.5]}
12... Bh3 {[%clk 0:02:19.7]} 13. e4 {[%clk 0:02:05.7]} 13... Bxg2 {[%clk
0:02:19.1]} 14. Kxg2 {[%clk 0:02:02.4]} 14... Nd7 {[%clk 0:02:17.7]} 15. e5
{[%clk 0:01:56.5]} 15... dxe5 {[%clk 0:02:15.5]} 16. Nf3 {[%clk 0:01:55.2]}
16... O-O {[%clk 0:02:11.7]} 17. dxe5 {[%clk 0:01:54.4]} 17... Nb6 {[%clk
0:02:03]} 18. e6 {[%clk 0:01:40.7]} 18... fxe6 {[%clk 0:01:42.4]} 19. Qd3 {[%clk
0:01:35.9]} 19... e5 {[%clk 0:01:29.1]} 20. c5 {[%clk 0:01:32.3]} 20... Nd5
{[%clk 0:01:25.9]} 21. c4 {[%clk 0:01:20.8]} 21... Nb4 {[%clk 0:00:59.2]} 22.
Qe4 {[%clk 0:01:17.9]} 22... Qf5 {[%clk 0:00:57.6]} 23. g4 {[%clk 0:00:53.5]}
23... Qxe4 {[%clk 0:00:33.6]} 24. Rxe4 {[%clk 0:00:54.4]} 24... Rad8 {[%clk
0:00:31.3]} 25. Rb1 {[%clk 0:00:51.8]} 25... Nxa2 {[%clk 0:00:25.7]} 26. Bb2
{[%clk 0:00:51.3]} 26... Nb4 {[%clk 0:00:22.4]} 27. Bxe5 {[%clk 0:00:49.1]}
27... Bxe5 {[%clk 0:00:20.4]} 28. Rxb4 {[%clk 0:00:48.1]} 28... Bg7 {[%clk
0:00:12.6]} 29. Rxb7 {[%clk 0:00:47.9]} 29... Rf7 {[%clk 0:00:13.1]} 30. Ng5
{[%clk 0:00:41.3]} 30... Bf6 {[%clk 0:00:04.5]} 31. Nxf7 {[%clk 0:00:38.2]}
31... Kxf7 {[%clk 0:00:05.4]} 32. Rxa7 {[%clk 0:00:37.6]} 32... Rd2 {[%clk
0:00:06.1]} 33. Rc7 {[%clk 0:00:35.9]} 33... Bh4 {[%clk 0:00:06.2]} 34. Rf4+
{[%clk 0:00:35.6]} 34... Ke8 {[%clk 0:00:06]} 35. Rxc6 {[%clk 0:00:35.7]} 35...
Bg5 {[%clk 0:00:05.9]} 1-0

[Event "Early-Titled-Tuesday-Blitz-January-16-2024"]
[Site "Chess.com"]
[Date "2024.01.16"]
[Round "5"]
[White "karinachess1"]
[Black "Elsa167"]
[Result "0-1"]
[WhiteElo "2607"]
[BlackElo "2838"]
[TimeControl "180+1"]
[EndTime "8:58:06 PST"]
[Termination "Elsa167 won by resignation"]

1. d4 {[%clk 0:03:00.9]} 1... Nf6 {[%clk 0:02:58.1]} 2. c4 {[%clk 0:03:00.7]}
2... g6 {[%clk 0:02:58.3]} 3. g3 {[%clk 0:02:59.5]} 3... Bg7 {[%clk 0:02:58.6]}
4. Bg2 {[%clk 0:03:00.1]} 4... O-O {[%clk 0:02:59.4]} 5. Nc3 {[%clk 0:03:00.4]}
5... d6 {[%clk 0:03:00]} 6. Nf3 {[%clk 0:03:00.7]} 6... Nbd7 {[%clk 0:03:00.6]}
7. O-O {[%clk 0:03:01.1]} 7... e5 {[%clk 0:03:00.2]} 8. e4 {[%clk 0:03:00.4]}
8... exd4 {[%clk 0:03:00.5]} 9. Nxd4 {[%clk 0:03:00.6]} 9... Re8 {[%clk
0:03:01.4]} 10. Re1 {[%clk 0:02:58.3]} 10... Nc5 {[%clk 0:03:01]} 11. b4 {[%clk
0:02:51.3]} 11... Ne6 {[%clk 0:02:57.4]} 12. Nc2 {[%clk 0:02:50.4]} 12... a5
{[%clk 0:02:45.9]} 13. b5 {[%clk 0:02:11.7]} 13... Nd7 {[%clk 0:02:42]} 14. Bb2
{[%clk 0:02:07.3]} 14... Nec5 {[%clk 0:02:16]} 15. Rb1 {[%clk 0:02:04.9]} 15...
Ne5 {[%clk 0:02:15.4]} 16. Nd5 {[%clk 0:01:40]} 16... c6 {[%clk 0:01:55.5]} 17.
Bxe5 {[%clk 0:01:39.4]} 17... dxe5 {[%clk 0:01:49.8]} 18. bxc6 {[%clk
0:01:36.8]} 18... bxc6 {[%clk 0:01:49.7]} 19. Nb6 {[%clk 0:01:35.2]} 19... Rb8
{[%clk 0:01:35.6]} 20. Nxc8 {[%clk 0:01:29.5]} 20... Rxc8 {[%clk 0:01:26.7]} 21.
Bh3 {[%clk 0:01:19.9]} 21... Ra8 {[%clk 0:01:17.8]} 22. Qe2 {[%clk 0:01:02.3]}
22... Qc7 {[%clk 0:01:17.5]} 23. Qe3 {[%clk 0:01:00.5]} 23... Bf8 {[%clk
0:01:17]} 24. Red1 {[%clk 0:00:58.6]} 24... Rad8 {[%clk 0:01:15.6]} 25. Ne1
{[%clk 0:00:47.7]} 25... Rxd1 {[%clk 0:00:58.8]} 26. Rxd1 {[%clk 0:00:48.6]}
26... Rd8 {[%clk 0:00:59.4]} 27. Rxd8 {[%clk 0:00:36.9]} 27... Qxd8 {[%clk
0:01:00.3]} 28. Nf3 {[%clk 0:00:28.6]} 28... Qd1+ {[%clk 0:00:50.2]} 29. Bf1
{[%clk 0:00:28.8]} 29... f6 {[%clk 0:00:43.1]} 30. Kg2 {[%clk 0:00:20.3]} 30...
Qc2 {[%clk 0:00:36.6]} 31. Nd2 {[%clk 0:00:17.8]} 31... Qxa2 {[%clk 0:00:33.4]}
32. h4 {[%clk 0:00:15.3]} 32... a4 {[%clk 0:00:30.8]} 33. Be2 {[%clk 0:00:14.9]}
33... a3 {[%clk 0:00:30.9]} 34. h5 {[%clk 0:00:14.5]} 34... Qb2 {[%clk
0:00:25.6]} 35. hxg6 {[%clk 0:00:13]} 35... hxg6 {[%clk 0:00:26.5]} 36. Qf3
{[%clk 0:00:13.3]} 36... Qxd2 {[%clk 0:00:25.3]} 0-1

[Event "Early-Titled-Tuesday-Blitz-January-16-2024"]
[Site "Chess.com"]
[Date "2024.01.16"]
[Round "5"]
[White "goodwilll"]
[Black "Ezov"]
[Result "1-0"]
[WhiteElo "2427"]
[BlackElo "2239"]
[TimeControl "180+1"]
[EndTime "8:58:06 PST"]
[Termination "goodwilll won by resignation"]

1. e4 {[%clk 0:00:57.4]} 1... e6 {[%clk 0:02:57.7]} 2. d4 {[%clk 0:00:56.2]}
2... d5 {[%clk 0:02:58.2]} 3. Nc3 {[%clk 0:00:56.3]} 3... Bb4 {[%clk 0:02:56.2]}
4. e5 {[%clk 0:00:55.2]} 4... c5 {[%clk 0:02:55.1]} 5. a3 {[%clk 0:00:55.6]}
5... cxd4 {[%clk 0:02:54.5]} 6. axb4 {[%clk 0:00:54.3]} 6... dxc3 {[%clk
0:02:53.5]} 7. Nf3 {[%clk 0:00:53.3]} 7... Qc7 {[%clk 0:02:50.2]} 8. Bd3 {[%clk
0:00:53.1]} 8... Nc6 {[%clk 0:02:46.9]} 9. O-O {[%clk 0:00:51.1]} 9... Nxb4
{[%clk 0:02:42.7]} 10. bxc3 {[%clk 0:00:49.9]} 10... Nxd3 {[%clk 0:02:39.8]} 11.
Qxd3 {[%clk 0:00:50.8]} 11... Ne7 {[%clk 0:02:34.3]} 12. Ba3 {[%clk 0:00:50.8]}
12... O-O {[%clk 0:01:41.1]} 13. Bd6 {[%clk 0:00:50.2]} 13... Qd7 {[%clk
0:01:38.9]} 14. Ng5 {[%clk 0:00:50.2]} 14... g6 {[%clk 0:01:37.1]} 15. Qh3
{[%clk 0:00:50]} 15... h5 {[%clk 0:01:31.1]} 16. g4 {[%clk 0:00:50]} 16... Kg7
{[%clk 0:01:23.4]} 17. Qf3 {[%clk 0:00:48.5]} 17... f6 {[%clk 0:00:47.8]} 18.
exf6+ {[%clk 0:00:37.6]} 18... Rxf6 {[%clk 0:00:48.4]} 19. Be5 {[%clk
0:00:37.8]} 19... Ng8 {[%clk 0:00:41.8]} 20. Rfe1 {[%clk 0:00:31.4]} 20... Qe7
{[%clk 0:00:31]} 21. gxh5 {[%clk 0:00:27.2]} 21... gxh5 {[%clk 0:00:30.3]} 22.
Qxh5 {[%clk 0:00:25.1]} 22... Nh6 {[%clk 0:00:23.8]} 23. Re3 {[%clk 0:00:20.4]}
23... Bd7 {[%clk 0:00:19.5]} 24. Rg3 {[%clk 0:00:19.7]} 24... Kf8 {[%clk
0:00:13.6]} 25. Bxf6 {[%clk 0:00:17.9]} 25... Qxf6 {[%clk 0:00:13.4]} 26. Nh7+
{[%clk 0:00:18]} 1-0

[Event "Early-Titled-Tuesday-Blitz-January-16-2024"]
[Site "Chess.com"]
[Date "2024.01.16"]
[Round "5"]
[White "lasRojas"]
[Black "Kotofeyca"]
[Result "1-0"]
[WhiteElo "2442"]
[BlackElo "2417"]
[TimeControl "180+1"]
[EndTime "8:58:08 PST"]
[Termination "lasRojas won by checkmate"]

1. e4 {[%clk 0:03:00.9]} 1... c5 {[%clk 0:02:59.7]} 2. Nf3 {[%clk 0:03:00.9]}
2... d6 {[%clk 0:03:00.1]} 3. d4 {[%clk 0:03:01.2]} 3... cxd4 {[%clk 0:03:01]}
4. Nxd4 {[%clk 0:03:01.9]} 4... Nf6 {[%clk 0:03:01.3]} 5. Nc3 {[%clk 0:03:02.4]}
5... a6 {[%clk 0:03:01.7]} 6. Be2 {[%clk 0:03:01.8]} 6... e5 {[%clk 0:03:01.7]}
7. Nb3 {[%clk 0:03:02.1]} 7... Be7 {[%clk 0:03:01.2]} 8. Be3 {[%clk 0:03:02.1]}
8... O-O {[%clk 0:03:01]} 9. g4 {[%clk 0:03:00.2]} 9... Be6 {[%clk 0:02:51.3]}
10. g5 {[%clk 0:02:58.8]} 10... Nfd7 {[%clk 0:02:51.3]} 11. h4 {[%clk
0:02:54.5]} 11... Nb6 {[%clk 0:02:34]} 12. Rg1 {[%clk 0:02:45.7]} 12... N8d7
{[%clk 0:02:00.5]} 13. h5 {[%clk 0:02:42.8]} 13... Nc4 {[%clk 0:01:53.7]} 14.
Bxc4 {[%clk 0:02:19.3]} 14... Bxc4 {[%clk 0:01:54.6]} 15. Qg4 {[%clk 0:01:47.4]}
15... Be6 {[%clk 0:01:44.5]} 16. Qg3 {[%clk 0:01:47.1]} 16... b5 {[%clk
0:00:50]} 17. f4 {[%clk 0:01:43.5]} 17... b4 {[%clk 0:00:39.4]} 18. Nd5 {[%clk
0:01:30]} 18... Bxd5 {[%clk 0:00:39.3]} 19. exd5 {[%clk 0:01:30.8]} 19... exf4
{[%clk 0:00:38.5]} 20. Bxf4 {[%clk 0:01:31]} 20... Ne5 {[%clk 0:00:35.4]} 21.
O-O-O {[%clk 0:01:26]} 21... a5 {[%clk 0:00:28.8]} 22. Nd4 {[%clk 0:01:18.7]}
22... Qb6 {[%clk 0:00:19.9]} 23. Nf5 {[%clk 0:01:13.7]} 23... Rfe8 {[%clk
0:00:19.6]} 24. Kb1 {[%clk 0:01:02.8]} 24... a4 {[%clk 0:00:17.9]} 25. Bxe5
{[%clk 0:01:02.4]} 25... dxe5 {[%clk 0:00:17.4]} 26. d6 {[%clk 0:00:47.6]} 26...
Bf8 {[%clk 0:00:15.6]} 27. Rge1 {[%clk 0:00:37.8]} 27... Rad8 {[%clk 0:00:14.1]}
28. Rxe5 {[%clk 0:00:34.6]} 28... Rxe5 {[%clk 0:00:14.1]} 29. Qxe5 {[%clk
0:00:34.2]} 29... a3 {[%clk 0:00:14.6]} 30. b3 {[%clk 0:00:32.7]} 30... Qf2
{[%clk 0:00:13.5]} 31. h6 {[%clk 0:00:26.2]} 31... Qf3 {[%clk 0:00:13.6]} 32.
Re1 {[%clk 0:00:20.4]} 32... Qg4 {[%clk 0:00:09.4]} 33. hxg7 {[%clk 0:00:19.3]}
33... Bxd6 {[%clk 0:00:07.7]} 34. Nh6# {[%clk 0:00:19.1]} 1-0